bitfinex/quotes_SOLUSD_20251116
["timestamp","ask_amount","ask_price","bid_price","bid_amount"]
[1763315374955,7.5211977,135.97,135.95,60.8]
[1763315375160,7.5211977,135.97,135.95,164.6]
[1763315376382,50.61,136.0,135.95,164.6]
[1763315376383,7.5211977,135.98,135.95,164.6]
[1763315376659,7.5211977,135.99,135.96,0.66]
[1763315377342,7.5211977,135.98,135.96,0.66]
[1763315377551,7.5211977,135.99,135.96,0.66]
[1763315377746,7.5211977,135.98,135.95,164.6]
[1763315378273,7.5211977,135.97,135.95,164.6]
[1763315378444,7.5211977,135.96,135.95,164.6]
[1763315378954,50.0,135.99,135.95,165.26]
[1763315379154,7.5211977,135.97,135.95,165.26]
[1763315379349,7.5211977,135.97,135.95,164.6]
[1763315380039,7.5211977,135.98,135.96,0.66]
[1763315380483,7.5211977,135.98,135.95,164.6]
[1763315380763,7.5211977,135.98,135.95,165.26]
[1763315382558,7.5211977,135.98,135.95,61.46]
[1763315384556,7.5211977,135.96,135.95,164.6]
[1763315385568,50.0,135.99,135.95,164.6]
[1763315385764,22.6512,136.01,135.9,22.6512]
[1763315385765,7.5211977,136.01,135.96,0.69]
[1763315385975,7.5211977,135.99,135.96,0.69]
[1763315386454,7.5211977,135.98,135.96,0.69]
[1763315386858,7.5211977,135.97,135.94,0.69]
[1763315387774,0.61,135.99,135.9,0.69]
[1763315387775,7.5211977,135.95,135.9,0.69]
[1763315387950,7.5211977,135.94,135.91,0.69]
[1763315388153,7.5211977,135.95,135.91,0.69]
[1763315390476,7.5211977,135.96,135.91,8.2111977]
[1763315390871,7.5211977,135.98,135.96,60.8]
[1763315391178,7.5211977,135.98,135.96,164.6]
[1763315391804,30.1723977,135.99,135.97,0.69]
[1763315391973,7.5211977,135.98,135.97,164.6]
[1763315396397,8.1311977,135.98,135.97,164.6]
[1763315396589,8.1311977,135.98,135.93,0.69]
[1763315396788,7.5211977,135.96,135.93,0.69]
[1763315396998,7.5211977,135.96,135.91,18.00002539]
[1763315397303,8.1311977,135.96,135.92,0.69]
[1763315397472,8.1311977,135.96,135.92,61.49]
[1763315397903,8.1311977,135.95,135.92,60.8]
[1763315398077,8.1311977,135.95,135.91,70.58882769]
[1763315398279,8.1311977,135.95,135.91,71.27882769]
[1763315398603,7.5211977,135.96,135.91,71.27882769]
[1763315399093,8.1311977,135.96,135.91,71.27882769]
[1763315399773,8.1311977,135.96,135.92,0.69]
[1763315399978,7.5211977,135.96,135.92,0.69]
[1763315400476,7.5211977,135.97,135.92,8.2111977]
[1763315400803,7.5211977,136.03,135.97,9.78882769]
[1763315400995,0.61,136.04,135.99,7.5211977]
[1763315401176,0.61,136.03,135.97,9.78882769]
[1763315401382,73.2612,136.03,135.95,7.5211977]
[1763315401697,7.5211977,136.02,135.97,17.31002539]
[1763315401886,7.5211977,136.02,135.98,7.5211977]
[1763315401887,0.61,136.02,135.98,7.5211977]
[1763315402807,8.1311977,136.02,135.97,17.31002539]
[1763315403017,22.6512,136.0,135.97,9.78882769]
[1763315403302,0.61,136.01,135.97,9.78882769]
[1763315404808,0.61,136.01,135.95,17.31002539]
[1763315404809,7.5211977,136.0,135.95,17.31002539]
[1763315405101,23.2612,136.01,135.95,17.31002539]
[1763315405401,7.5211977,136.0,135.95,17.31002539]
[1763315405606,8.1311977,136.0,135.95,17.31002539]
[1763315405922,0.61,135.99,135.95,17.31002539]
[1763315406207,0.61,135.99,135.95,18.00002539]
[1763315406504,0.61,135.99,135.96,7.5211977]
[1763315406915,30.1723977,136.01,135.96,7.5211977]
[1763315407217,0.61,136.0,135.96,7.5211977]
[1763315407382,30.1723977,136.01,135.96,8.2111977]
[1763315407583,7.5211977,136.03,135.98,7.5211977]
[1763315407989,7.5211977,136.04,135.99,9.78882769]
[1763315408189,8.1311977,136.05,136.0,7.5211977]
[1763315408415,30.1723977,136.05,136.0,7.5211977]
[1763315408622,30.1723977,136.05,136.01,0.69]
[1763315408623,22.6512,136.05,136.01,0.69]
[1763315408918,0.61,136.05,136.0,8.2111977]
[1763315409223,22.6512,136.05,136.01,0.69]
[1763315409897,23.2612,136.05,136.0,7.5211977]
[1763315410104,23.2612,136.05,136.0,8.2111977]
[1763315410303,8.1311977,136.05,136.0,8.2111977]
[1763315410531,0.2,136.07,135.96,0.69]
[1763315410532,30.1723977,136.02,135.96,0.69]
[1763315410826,7.5211977,136.01,135.97,9.78882769]
[1763315411015,30.1723977,136.02,135.97,10.47882769]
[1763315411224,30.7823977,136.02,135.97,10.47882769]
[1763315411895,22.6512,136.02,135.99,9.78882769]
[1763315412223,30.1723977,136.04,135.99,18.00002539]
[1763315412392,30.7823977,136.04,135.99,18.00002539]
[1763315412817,8.1311977,136.03,135.99,9.78882769]
[1763315413129,8.1311977,136.03,135.98,7.5211977]
[1763315413130,7.5211977,136.02,135.98,9.78882769]
[1763315413420,22.6512,136.0,135.96,7.5211977]
[1763315413622,22.6512,136.0,135.97,9.78882769]
[1763315413922,30.7823977,136.0,135.96,9.78882769]
[1763315414090,7.5211977,135.98,135.94,9.78882769]
[1763315414289,8.1311977,135.99,135.94,17.31002539]
[1763315414493,8.1311977,135.99,135.94,17.97002539]
[1763315414811,0.61,135.98,135.94,10.44882769]
[1763315415127,8.1311977,135.99,135.94,10.44882769]
[1763315415327,0.61,135.98,135.94,10.44882769]
[1763315415495,8.1311977,135.99,135.94,10.44882769]
[1763315415703,7.5211977,135.98,135.94,10.44882769]
[1763315416027,7.5211977,135.99,135.95,0.69]
[1763315416793,8.1311977,135.99,135.95,0.69]
[1763315417023,8.1311977,135.99,135.92,8.2111977]
[1763315417024,7.5211977,135.97,135.92,8.2111977]
[1763315417434,8.1311977,135.96,135.93,9.78882769]
[1763315417608,7.5211977,135.96,135.93,9.78882769]
[1763315418432,0.61,135.98,135.91,7.5211977]
[1763315418610,22.6512,135.99,135.91,8.2111977]
[1763315418818,0.61,135.98,135.93,9.78882769]
[1763315420133,7.5211977,135.97,135.93,10.47882769]
[1763315420727,22.6512,135.99,135.93,9.78882769]
[1763315421029,22.6512,135.99,135.92,7.5211977]
[1763315421030,30.1723977,135.99,135.94,18.00002539]
[1763315421242,30.1723977,135.99,135.95,0.69]
[1763315421604,30.7823977,135.99,135.95,0.69]
[1763315422215,7.5211977,135.97,135.93,9.78882769]
[1763315422742,8.1311977,135.97,135.93,9.78882769]
[1763315423237,30.7823977,135.96,135.9,7.5211977]
[1763315423411,30.7823977,135.96,135.91,10.47882769]
[1763315423609,7.5211977,135.95,135.91,10.47882769]
[1763315423822,30.1723977,135.96,135.92,0.69]
[1763315424632,6.14446468,136.02,135.92,0.69]
[1763315424633,50.0,136.02,135.93,9.78882769]
[1763315424829,7.5211977,135.98,135.93,17.31002539]
[1763315425038,7.5211977,135.98,135.94,0.69]
[1763315425209,8.1311977,135.98,135.94,0.69]
[1763315425411,7.5211977,135.97,135.93,9.78882769]
[1763315425721,7.5211977,135.97,135.94,0.69]
[1763315426035,7.5211977,135.97,135.88,60.8]
[1763315426036,8.1311977,135.96,135.91,10.47882769]
[1763315426241,8.1311977,135.96,135.92,9.78882769]
[1763315426431,7.5211977,135.96,135.92,10.47882769]
[1763315427137,7.5211977,135.96,135.93,0.69]
[1763315427312,30.7823977,135.97,135.93,0.69]
[1763315427514,30.7823977,135.97,135.92,9.78882769]
[1763315427715,30.7823977,135.97,135.93,0.69]
[1763315427913,30.1723977,135.97,135.93,0.69]
[1763315428330,22.6512,135.97,135.93,8.2111977]
[1763315428821,22.6512,135.97,135.94,0.69]
[1763315430421,22.6512,135.97,135.94,61.49]
[1763315431448,22.6512,135.97,135.94,60.8]
[1763315431758,18.60706887,136.09,135.96,7.5211977]
[1763315431759,30.1723977,136.01,135.96,7.5211977]
[1763315432066,7.5211977,135.98,135.94,61.49]
[1763315432423,7.5211977,135.98,135.95,0.69]
[1763315433023,7.5211977,136.0,135.96,9.78882769]
[1763315433223,7.5211977,136.01,135.96,9.78882769]
[1763315433434,7.5211977,136.01,135.97,0.69]
[1763315434119,7.5211977,136.01,135.96,71.27882769]
[1763315434120,7.5211977,136.0,135.96,71.27882769]
[1763315434320,7.5211977,135.99,135.96,71.27882769]
[1763315434769,7.5211977,135.99,135.96,70.58882769]
[1763315434926,7.5211977,136.0,135.96,70.58882769]
[1763315435127,7.5211977,136.0,135.96,71.27882769]
[1763315435429,7.5211977,136.0,135.97,0.69]
[1763315436148,30.1723977,135.98,135.96,60.8]
[1763315436358,7.5211977,135.97,135.93,70.58882769]
[1763315436527,7.5211977,135.97,135.93,71.27882769]
[1763315436940,13.0963771,135.97,135.94,0.69]
[1763315437466,13.0963771,135.99,135.95,9.78882769]
[1763315437765,13.0963771,135.99,135.96,0.69]
[1763315437969,13.0963771,135.99,135.96,61.49]
[1763315438374,13.0963771,135.99,135.97,0.69]
[1763315438666,13.0963771,135.99,135.96,60.8]
[1763315438667,13.0963771,135.98,135.96,60.8]
[1763315439856,13.0963771,135.99,135.96,60.8]
[1763315440667,13.7063771,135.99,135.96,60.8]
[1763315440850,13.0963771,135.99,135.96,60.8]
[1763315441165,13.7063771,135.98,135.94,0.69]
[1763315441570,0.61,135.98,135.94,0.69]
[1763315442369,13.7063771,135.98,135.93,9.78882769]
[1763315442573,13.7063771,135.98,135.93,10.47882769]
[1763315443053,13.7063771,135.98,135.87,15.48933436]
[1763315443054,13.0963771,135.96,135.91,0.69]
[1763315443238,13.0963771,135.95,135.92,9.78882769]
[1763315443441,23.2612,135.97,135.89,13.0963771]
[1763315443442,13.0963771,135.94,135.9,10.47882769]
[1763315443872,13.7063771,135.94,135.9,10.47882769]
[1763315444243,23.2612,135.96,135.91,0.67]
[1763315444469,13.0963771,135.95,135.91,0.67]
[1763315444972,13.7063771,135.95,135.91,0.67]
[1763315445852,13.7063771,135.95,135.9,9.78882769]
[1763315445853,13.0963771,135.94,135.9,9.78882769]
[1763315446053,13.0963771,135.92,135.88,9.78882769]
[1763315446246,13.0963771,135.9,135.88,9.78882769]
[1763315446461,13.0963771,135.89,135.86,9.78882769]
[1763315446664,13.0963771,135.9,135.86,10.45882769]
[1763315446864,13.7063771,135.9,135.86,10.45882769]
[1763315447067,13.0963771,135.89,135.86,10.45882769]
[1763315447651,13.7063771,135.9,135.86,10.45882769]
[1763315447855,22.6512,135.91,135.88,9.78882769]
[1763315448173,35.7475771,135.92,135.88,10.45882769]
[1763315448556,35.7475771,135.92,135.89,0.67]
[1763315448775,35.7475771,135.92,135.88,10.45882769]
[1763315449152,22.6512,135.92,135.88,9.78882769]
[1763315449483,22.6512,135.92,135.89,0.67]
[1763315450463,35.7475771,135.92,135.89,0.67]
[1763315450977,35.7475771,135.92,135.9,9.78882769]
[1763315450978,22.6512,135.92,135.9,9.78882769]
[1763315451183,35.7475771,135.92,135.89,0.67]
[1763315452882,13.7063771,135.91,135.88,61.2]
[1763315453179,13.0963771,135.9,135.87,0.67]
[1763315453393,13.0963771,135.89,135.85,10.45882769]
[1763315453548,13.0963771,135.89,135.87,9.78882769]
[1763315454087,13.0963771,135.89,135.86,0.67]
[1763315454455,0.61,135.91,135.86,0.67]
[1763315454759,13.0963771,135.9,135.86,0.67]
[1763315454954,13.0963771,135.89,135.86,0.67]
[1763315455389,13.0963771,135.9,135.86,0.67]
[1763315456155,13.0963771,135.89,135.86,0.67]
[1763315456884,13.0963771,135.88,135.84,0.67]
[1763315457082,13.0963771,135.88,135.81,22.7512]
[1763315457083,13.0963771,135.88,135.85,10.45882769]
[1763315457379,13.0963771,135.88,135.85,9.78882769]
[1763315457566,13.0963771,135.88,135.85,10.45882769]
[1763315457749,13.0963771,135.88,135.85,9.78882769]
[1763315457952,13.0963771,135.88,135.86,0.67]
[1763315458184,13.0963771,135.88,135.85,9.78882769]
[1763315458185,13.0963771,135.88,135.85,0.67]
[1763315458385,13.0963771,135.86,135.82,0.1]
[1763315458571,13.0963771,135.84,135.82,0.1]
[1763315458777,4.94532362,135.84,135.82,0.1]
[1763315458977,5.55532362,135.83,135.82,0.1]
[1763315459761,27.59652362,135.83,135.82,0.1]
[1763315460263,28.20652362,135.83,135.82,0.1]
[1763315460660,27.59652362,135.83,135.82,0.1]
[1763315460863,22.6512,135.83,135.82,0.1]
[1763315461079,22.6512,135.87,135.83,9.78882769]
[1763315461286,13.12355464,135.87,135.83,9.78882769]
[1763315461466,13.12355464,135.87,135.83,10.45882769]
[1763315461659,13.12355464,135.87,135.82,0.1]
[1763315461865,13.12355464,135.83,135.82,0.1]
[1763315465896,0.61,135.85,135.82,0.1]
[1763315466194,13.12355464,135.83,135.82,0.1]
[1763315468089,36.38475464,135.83,135.82,0.1]
[1763315469210,13.73355464,135.83,135.82,0.1]
[1763315469373,13.73355464,135.83,135.78,0.1]
[1763315469374,50.0,135.82,135.78,0.1]
[1763315469583,50.0,135.82,135.72,3.94448012]
[1763315469584,135.77475464,135.79,135.72,0.1]
[1763315469769,13.12355464,135.73,135.72,0.1]
[1763315470196,13.73355464,135.73,135.72,0.1]
[1763315470579,22.6512,135.74,135.72,0.1]
[1763315470796,13.12355464,135.73,135.72,0.1]
[1763315472186,22.6512,135.74,135.72,0.1]
[1763315472187,35.77475464,135.74,135.72,0.1]
[1763315472591,116.75819157,135.79,135.72,0.77]
[1763315472592,22.6512,135.76,135.72,0.77]
[1763315472907,22.6512,135.76,135.73,9.78882769]
[1763315473204,100.0,135.83,135.74,0.67]
[1763315473205,22.6512,135.8,135.74,0.67]
[1763315473419,22.6512,135.77,135.74,0.67]
[1763315473571,35.77475464,135.77,135.74,0.67]
[1763315473775,13.12355464,135.76,135.74,0.67]
[1763315474006,44.16744858,135.84,135.72,0.1]
[1763315474007,13.12355464,135.75,135.72,0.1]
[1763315474212,13.12355464,135.73,135.72,0.1]
[1763315474908,13.73355464,135.73,135.72,0.1]
[1763315476219,23.2612,135.73,135.72,0.1]
[1763315476373,35.77475464,135.73,135.72,0.1]
[1763315477200,13.12355464,135.74,135.72,0.79]
[1763315477709,0.61,135.77,135.72,0.1]
[1763315477710,13.73355464,135.73,135.72,0.1]
[1763315478107,36.38475464,135.73,135.72,0.1]
[1763315478422,35.77475464,135.73,135.72,0.1]
[1763315479114,22.6512,135.73,135.72,0.1]
[1763315479292,35.77475464,135.73,135.72,0.1]
[1763315482983,36.38475464,135.73,135.72,0.1]
[1763315483384,35.77475464,135.73,135.72,0.1]
[1763315485016,35.77475464,135.73,135.72,0.79]
[1763315485318,0.61,135.78,135.72,0.79]
[1763315485319,13.12355464,135.74,135.72,0.79]
[1763315485680,35.77475464,135.74,135.72,0.79]
[1763315485902,13.12355464,135.73,135.72,0.79]
[1763315487084,35.77475464,135.74,135.72,0.79]
[1763315487817,57.86950875,135.79,135.72,0.79]
[1763315487818,7.25950875,135.79,135.72,0.79]
[1763315487986,69.9799876,135.8,135.72,13.91355464]
[1763315487987,13.12355464,135.77,135.72,13.91355464]
[1763315488311,0.72,135.79,135.73,0.69]
[1763315488518,13.12355464,135.76,135.73,0.69]
[1763315489112,13.12355464,135.77,135.73,61.89]
[1763315489316,13.12355464,135.76,135.73,61.89]
[1763315489716,13.12355464,135.76,135.74,0.69]
[1763315490101,35.77475464,135.77,135.74,0.69]
[1763315491132,50.72,135.82,135.74,13.81355464]
[1763315491306,13.12355464,135.8,135.75,0.69]
[1763315491499,22.6512,135.79,135.75,0.69]
[1763315491702,0.72,135.82,135.75,0.69]
[1763315491703,22.6512,135.81,135.75,0.69]
[1763315491901,13.12355464,135.79,135.75,0.69]
[1763315494130,23.3712,135.81,135.76,22.91238233]
[1763315494131,22.6512,135.81,135.76,22.91238233]
[1763315494318,13.12355464,135.81,135.76,22.91238233]
[1763315494511,13.12355464,135.81,135.77,0.69]
[1763315494732,13.12355464,135.82,135.77,13.81355464]
[1763315494912,0.72,135.87,135.79,13.12355464]
[1763315495116,13.12355464,135.85,135.81,9.78882769]
[1763315495317,13.12355464,135.86,135.82,0.69]
[1763315495504,35.77475464,135.86,135.82,0.69]
[1763315496218,13.12355464,135.85,135.82,0.69]
[1763315496531,22.6512,135.86,135.82,0.69]
[1763315496699,13.12355464,135.85,135.82,0.69]
[1763315498329,22.6512,135.87,135.83,22.91238233]
[1763315498529,13.12355464,135.88,135.83,22.91238233]
[1763315498530,13.12355464,135.88,135.84,0.69]
[1763315498731,35.77475464,135.88,135.84,0.69]
[1763315498933,7.53136162,135.89,135.84,0.69]
[1763315499141,7.53136162,135.89,135.85,9.78882769]
[1763315499318,50.0,135.94,135.86,0.69]
[1763315499640,0.72,135.93,135.86,0.69]
[1763315499817,7.53136162,135.89,135.86,0.69]
[1763315500208,7.53136162,135.9,135.86,0.69]
[1763315501516,7.53136162,135.89,135.86,0.69]
[1763315501915,7.53136162,135.87,135.84,61.2]
[1763315502225,7.53136162,135.85,135.84,61.2]
[1763315502430,7.53136162,135.86,135.82,10.47882769]
[1763315502811,7.53136162,135.87,135.83,0.69]
[1763315503142,22.6512,135.89,135.83,0.69]
[1763315503438,7.53136162,135.87,135.83,0.69]
[1763315504228,23.3412,135.89,135.83,0.69]
[1763315504453,7.53136162,135.87,135.83,0.69]
[1763315507062,23.3412,135.89,135.79,0.69]
[1763315507063,22.6512,135.83,135.79,0.69]
[1763315507241,7.53136162,135.81,135.79,0.69]
[1763315507433,22.6512,135.83,135.79,0.69]
[1763315507759,7.53136162,135.82,135.79,0.69]
[1763315507944,30.18256162,135.83,135.79,0.69]
[1763315508943,22.6512,135.83,135.79,0.69]
[1763315509147,7.53136162,135.8,135.77,0.69]
[1763315509564,7.53136162,135.81,135.77,0.69]
[1763315509861,7.53136162,135.82,135.77,0.69]
[1763315510062,7.53136162,135.81,135.77,0.69]
[1763315510247,22.6512,135.85,135.8,7.53136162]
[1763315510562,7.53136162,135.83,135.78,17.32018931]
[1763315510766,7.53136162,135.83,135.79,0.69]
[1763315512067,7.53136162,135.82,135.79,165.69]
[1763315512239,7.53136162,135.82,135.8,0.69]
[1763315512861,7.53136162,135.81,135.79,165.0]
[1763315513168,7.53136162,135.8,135.79,61.2]
[1763315513552,22.6512,135.83,135.79,61.2]
[1763315513765,7.53136162,135.8,135.79,61.2]
[1763315514267,7.53136162,135.8,135.75,61.2]
[1763315514268,22.6512,135.78,135.75,61.2]
[1763315514437,7.53136162,135.76,135.73,0.69]
[1763315514643,7.53136162,135.75,135.73,0.69]
[1763315515175,7.53136162,135.76,135.73,0.69]
[1763315515378,30.18256162,135.78,135.73,8.22136162]
[1763315515552,22.6512,135.78,135.74,7.53136162]
[1763315515755,22.6512,135.78,135.74,8.22136162]
[1763315515954,22.6512,135.78,135.75,0.69]
[1763315519849,0.69,135.8,135.75,0.69]
[1763315520074,7.53136162,135.79,135.75,0.69]
[1763315520378,7.53136162,135.79,135.75,165.69]
[1763315520574,7.53136162,135.77,135.75,165.0]
[1763315520746,7.53136162,135.76,135.75,61.2]
[1763315521157,30.18256162,135.78,135.75,61.89]
[1763315521372,0.69,135.79,135.75,61.89]
[1763315521373,22.6512,135.79,135.76,0.69]
[1763315521572,7.53136162,135.81,135.76,173.22136162]
[1763315521947,50.69,135.83,135.77,0.69]
[1763315522279,7.53136162,135.81,135.77,165.69]
[1763315522681,7.53136162,135.79,135.77,165.0]
[1763315522859,7.53136162,135.79,135.77,61.2]
[1763315523769,8.22136162,135.78,135.77,61.2]
[1763315524081,22.6512,135.75,135.72,0.1]
[1763315524265,7.53136162,135.73,135.72,0.1]
[1763315524875,8.22136162,135.73,135.72,0.1]
[1763315526365,22.6512,135.74,135.72,0.1]
[1763315526673,22.6512,135.76,135.72,18.11018931]
[1763315526884,7.53136162,135.77,135.73,17.32018931]
[1763315527087,7.53136162,135.77,135.73,18.01018931]
[1763315527287,30.18256162,135.78,135.74,0.69]
[1763315527470,7.53136162,135.79,135.74,8.22136162]
[1763315527667,7.53136162,135.78,135.74,0.69]
[1763315527876,7.53136162,135.77,135.74,0.69]
[1763315528385,7.53136162,135.76,135.72,0.79]
[1763315528790,7.53136162,135.75,135.72,0.79]
[1763315529296,7.53136162,135.75,135.72,165.79]
[1763315529656,30.18256162,135.78,135.73,18.01018931]
[1763315530163,30.18256162,135.78,135.74,0.69]
[1763315530705,7.53136162,135.77,135.74,0.69]
[1763315531392,30.18256162,135.78,135.74,0.69]
[1763315531865,50.69,135.83,135.75,17.32018931]
[1763315532065,7.53136162,135.81,135.75,182.32018931]
[1763315532281,30.18256162,135.8,135.76,0.69]
[1763315532485,30.18256162,135.8,135.76,165.69]
[1763315532486,7.53136162,135.79,135.76,165.69]
[1763315532787,30.18256162,135.77,135.76,61.2]
[1763315532963,30.87256162,135.77,135.73,61.2]
[1763315533162,7.53136162,135.74,135.73,61.2]
[1763315534485,8.21136162,135.74,135.73,61.2]
[1763315534985,8.21136162,135.74,135.72,0.1]
[1763315534986,30.86256162,135.74,135.72,0.1]
[1763315535161,8.21136162,135.73,135.72,0.1]
[1763315535488,58.21136162,135.73,135.72,0.1]
[1763315535863,22.6512,135.74,135.72,0.1]
[1763315536063,30.18256162,135.74,135.72,0.1]
[1763315536300,7.53136162,135.73,135.72,0.1]
[1763315536479,8.21136162,135.73,135.72,0.1]
[1763315536676,7.53136162,135.73,135.72,0.1]
[1763315537698,30.18256162,135.74,135.72,0.1]
[1763315537898,30.86256162,135.74,135.72,0.1]
[1763315538098,7.53136162,135.73,135.72,61.3]
[1763315540199,22.6512,135.74,135.72,0.8]
[1763315540404,22.6512,135.74,135.72,61.3]
[1763315540696,22.6512,135.74,135.72,62.0]
[1763315540896,30.18256162,135.74,135.72,62.0]
[1763315542007,22.6512,135.74,135.72,62.0]
[1763315542592,50.68,135.77,135.73,0.7]
[1763315542593,30.18256162,135.77,135.73,0.7]
[1763315542793,30.18256162,135.77,135.73,165.7]
[1763315543314,22.6512,135.77,135.74,0.7]
[1763315543615,22.6512,135.77,135.73,165.0]
[1763315543616,7.53136162,135.76,135.73,165.0]
[1763315543800,7.53136162,135.76,135.74,0.7]
[1763315544113,30.18256162,135.77,135.73,165.0]
[1763315544411,30.86256162,135.77,135.73,165.7]
[1763315544600,30.18256162,135.77,135.74,0.7]
[1763315545011,22.6512,135.77,135.74,61.9]
[1763315545219,7.53136162,135.79,135.77,38.5488]
[1763315545400,7.53136162,135.8,135.77,142.3488]
[1763315545598,7.53136162,135.8,135.77,143.0488]
[1763315546088,8.21136162,135.79,135.77,142.3488]
[1763315546290,7.53136162,135.78,135.77,142.3488]
[1763315546727,0.68,135.82,135.77,143.0488]
[1763315546888,7.53136162,135.81,135.78,0.7]
[1763315547206,30.18256162,135.81,135.78,0.7]
[1763315547525,30.18256162,135.81,135.77,142.3488]
[1763315547818,30.18256162,135.81,135.78,0.7]
[1763315548014,7.53136162,135.81,135.77,142.3488]
[1763315548210,7.53136162,135.81,135.78,0.7]
[1763315548822,23.3312,135.82,135.78,0.7]
[1763315549017,7.53136162,135.8,135.77,142.3488]
[1763315549222,7.53136162,135.8,135.77,143.0488]
[1763315549519,22.6512,135.82,135.77,143.0488]
[1763315549520,7.53136162,135.78,135.77,142.3488]
[1763315549889,7.53136162,135.78,135.77,38.5488]
[1763315550912,8.21136162,135.78,135.77,38.5488]
[1763315551090,22.6512,135.74,135.72,0.1]
[1763315551294,7.53136162,135.73,135.72,0.1]
[1763315551691,22.6512,135.74,135.72,0.8]
[1763315552692,7.53136162,135.76,135.72,0.8]
[1763315553613,7.53136162,135.75,135.72,0.8]
[1763315554411,7.53136162,135.76,135.72,8.33136162]
[1763315554817,7.53136162,135.76,135.73,0.7]
[1763315556219,7.53136162,135.75,135.73,0.7]
[1763315556623,50.68,135.81,135.77,15.8976]
[1763315556826,7.53136162,135.78,135.77,15.8976]
[1763315557123,50.0,135.83,135.77,15.8976]
[1763315557323,0.68,135.82,135.77,119.6976]
[1763315558199,0.68,135.82,135.77,120.3976]
[1763315558401,7.53136162,135.78,135.77,120.3976]
[1763315560529,22.6512,135.8,135.77,120.3976]
[1763315560821,13.12955122,135.78,135.77,120.3976]
[1763315562593,13.12955122,135.78,135.77,119.6976]
[1763315562816,22.6512,135.8,135.77,120.3976]
[1763315563015,13.12955122,135.78,135.77,119.8976]
[1763315563215,13.12955122,135.78,135.77,119.1976]
[1763315564425,23.3312,135.8,135.78,2.26804878]
[1763315565607,13.80955122,135.79,135.78,2.26804878]
[1763315565806,13.12955122,135.79,135.78,2.26804878]
[1763315566007,13.80955122,135.79,135.78,2.26804878]
[1763315567615,13.80955122,135.79,135.73,2.26804878]
[1763315567616,63.80955122,135.79,135.73,2.26804878]
[1763315567817,13.12955122,135.74,135.73,2.26804878]
[1763315568237,0.68,135.76,135.73,2.26804878]
[1763315568427,13.12955122,135.74,135.73,2.26804878]
[1763315571133,13.12955122,135.74,135.73,2.92804878]
[1763315571326,13.12955122,135.75,135.73,2.26804878]
[1763315572742,0.68,135.76,135.73,2.26804878]
[1763315572916,13.12955122,135.75,135.73,2.26804878]
[1763315573111,13.12955122,135.75,135.73,103.8]
[1763315573112,10.86150244,135.75,135.73,103.8]
[1763315573726,10.86150244,135.75,135.73,104.46]
[1763315574237,10.86150244,135.75,135.73,103.8]
[1763315575334,22.6512,135.78,135.74,0.66]
[1763315575536,35.78075122,135.78,135.74,0.66]
[1763315575923,36.46075122,135.78,135.74,0.66]
[1763315576421,13.12955122,135.77,135.74,0.66]
[1763315576618,13.80955122,135.77,135.74,0.66]
[1763315576823,13.12955122,135.76,135.72,117.02955122]
[1763315577023,13.12955122,135.76,135.74,9.78882769]
[1763315577428,13.12955122,135.76,135.74,10.44882769]
[1763315578239,13.12955122,135.77,135.75,0.66]
[1763315578926,13.12955122,135.76,135.75,61.2]
[1763315579124,13.12955122,135.77,135.75,61.86]
[1763315579319,13.12955122,135.77,135.75,61.2]
[1763315579521,23.3312,135.8,135.75,61.86]
[1763315579730,13.12955122,135.77,135.75,61.86]
[1763315580239,13.12955122,135.77,135.75,61.2]
[1763315580619,13.12955122,135.77,135.75,61.86]
[1763315581946,13.12955122,135.77,135.73,103.8]
[1763315581947,13.80955122,135.76,135.73,61.2]
[1763315582152,13.12955122,135.74,135.73,61.2]
[1763315582730,0.68,135.76,135.73,70.98882769]
[1763315582930,13.12955122,135.74,135.73,70.98882769]
[1763315583258,0.68,135.76,135.73,70.98882769]
[1763315583259,13.12955122,135.76,135.74,10.44882769]